[Event "Austrian Bundesliga 2023-24"]
[Site "Austria"]
[Date "2024.03.24"]
[Round "11.3"]
[White "Hracek, Zbynek"]
[Black "Halvax, Georg"]
[Result "1/2-1/2"]
[ECO "B31"]
[WhiteElo "2542"]
[BlackElo "2452"]
[Annotator "TA"]
[PlyCount "73"]
[EventDate "2023.10.21"]
[EventType "team-tourn"]
[EventCountry "AUT"]
[SourceTitle "playchess.com"]
[Source "ChessBase"]
[SourceQuality "1"]
[TimeControl "40/5400+30:1800+30"]

{[%evp 19,73,6,3,13,17,0,19,0,0,7,4,12,21,0,7,0,20,18,35,35,35,37,43,19,22,30,53,33,38,38,29,7,33,14,20,22,55,53,48,55,67,45,56,60,65,56,50,56,59,58,54,56,50,18,15,12]} 1. e4 {[%emt 0:00:04]} c5 {[%emt 0:00:09]} 2. Nf3 {[%emt 0:00:05]} Nc6 {[%emt 0:00:11]} 3. Bb5 {[%emt 0:00:08]} g6 {[%emt 0:00:10]} 4. O-O {[%emt 0:00:10]} Bg7 {[%emt 0:00:07]} 5. Re1 {[%emt 0:00:10]} Nf6 {[%emt 0:00:11][%cal Bg8f6,Bf6e8,Be8c7,Bc7e6,Be6d4][%mdl 32]} 6. Nc3 {[%emt 0:01:09]} O-O {[%emt 0:01:33]} 7. e5 {[%emt 0:00:33]} Ne8 {[%emt 0:00:24]} 8. Bxc6 {[%emt 0:00:08]} dxc6 {[%emt 0:00:22]} 9. h3 {[%emt 0:00:54]} Nc7 {[%emt 0:00:11]} 10. d3 {[%emt 0:00:05]} Ne6 {[%emt 0:00:56]} 11. Be3 {[%emt 0:04:32]} Nd4 {[%emt 0:00:53]} 12. Bf4 {[%emt 0:03:38]} Ne6 {[%emt 0:01:09]} 13. Be3 {[%emt 0:08:56]} Nd4 {[%emt 0:00:18]} 14. a4 {[%emt 0:07:30]} a5 {[%emt 0:02:23]} 15. Bf4 {[%emt 0:04:21]} Ne6 {[%emt 0:00:27]} 16. Be3 {[%emt 0:08:31]} Nd4 {[%emt 0:00:16]} 17. Bf4 {[%emt 0:00:13]} Ne6 {[%emt 0:00:08]} 18. Qc1 {[%emt 0:00:43]} Nxf4 {[%emt 0:00:12]} 19. Qxf4 {[%emt 0:00:03]} Bf5 {[%emt 0:04:04]} 20. Ne4 {[%emt 0:05:25]} b6 {[%emt 0:03:05]} 21. Ng3 {[%emt 0:03:44]} Be6 {[%emt 0:02:02]} 22. Ng5 {[%emt 0:02:50]} Qd7 {[%emt 0:04:05]} 23. Qh4 {[%emt 0:12:38][%csl Gg5][%cal Rh4h7] [#]} h6 {[%emt 0:01:07]} 24. Nxe6 {[%emt 0:00:06]} Qxe6 {[%emt 0:00:12]} 25. Re4 {[%emt 0:10:45]} Rad8 {[%emt 0:09:24]} 26. b3 {[%emt 0:01:28]} Rd4 {[%emt 0:04:23]} 27. Rae1 {[%emt 0:02:42]} Rxe4 {[%emt 0:00:56]} 28. Qxe4 {[%emt 0:01:01]} Rd8 {[%emt 0:01:25]} 29. f4 {[%emt 0:01:56]} Qd5 {[%emt 0:03:05]} 30. Nf1 {[%emt 0:03:38][%cal Bg3f1,Bf1d2,Bd2e4][%mdl 32]} Qd4+ {[%emt 0:01:45]} 31. Qxd4 {[%emt 0:02:38]} cxd4 $14 {[%emt 0:02:13][%mdl 4096] Endgame. KRB-KRN} 32. Nd2 {[%emt 0:00:10]} e6 $1 {[%emt 0:00:51]} 33. Ne4 {[%emt 0:04:42]} Bf8 {[%emt 0:00:53]} 34. Kf2 {[%emt 0:00:11]} Be7 {[%emt 0:01:00]} 35. Kf3 {[%emt 0:00:34]} Kg7 {[%emt 0:01:40]} 36. g4 {[%emt 0:02:24]} Rd5 {[%emt 0:02:19]} 37. Re2 {[%emt 0:00:08] Weighted Error Value: White=0.08 (flawless) /Black=0.07 (flawless) .  Inaccurate:     	White=1     	Black=2      OK:         	White=12    	Black=11     Strong:       	---       	Black=1} 1/2-1/2

[Event "Austrian Bundesliga 2023-24"]
[Site "Austria"]
[Date "2024.03.24"]
[Round "11.4"]
[White "Kreisl, Robert"]
[Black "Haba, Petr"]
[Result "0-1"]
[ECO "A21"]
[WhiteElo "2260"]
[BlackElo "2436"]
[Annotator "TA"]
[PlyCount "138"]
[EventDate "2023.10.21"]
[EventType "team-tourn"]
[EventCountry "AUT"]
[SourceTitle "playchess.com"]
[Source "ChessBase"]
[SourceQuality "1"]
[TimeControl "40/5400+30:1800+30"]

{[%evp 42,138,-120,-116,-114,-116,-128,-129,-129,-129,-111,-126,-123,-124,-126,-110,-106,-139,-131,-142,-134,-186,-183,-266,-147,-141,-153,-496,-516,-918,-1256,-1193,-1077,-795,-584,-1176,-1121,-1377,-1374,-1335,-1299,-1149,-1083,-2399,-2503,-6613,-6044,-1729,-9479,-9513,-9644,-6513,-5869,-4594,-3841,-2768,-2758,-8670,-29952,-29946,-7459,-29970,-29971,-29971,-29971,-29962,-29962,-29978,-29979,-29979,-29980,-29980,-29980,-29980,-29981,-29982,-29983,-29983,-29984,-29984,-29985,-29985,-29986,-29986,-29984,-29981,-29978,-29981,-29982,-29987,-29988,-29988,-29988,-29988,-29989,-29989,-29989,-29989,-29990]} 1. c4 {[%emt 0:00:04]} e5 {[%emt 0:00:40]} 2. Nc3 {[%emt 0:00:05]} Bb4 {[%emt 0:00:10]} 3. Nd5 {[%emt 0:05:14]} Be7 {[%emt 0:00:26]} 4. d4 {[%emt 0:04:48]} exd4 {[%emt 0:01:06]} 5. Qxd4 {[%emt 0:18:56]} Nf6 {[%emt 0:00:18]} 6. Nxe7 {[%emt 0:01:58]} Qxe7 {[%emt 0:00:04]} 7. Bg5 {[%emt 0:03:26]} Nc6 {[%emt 0:00:30]} 8. Bxf6 {[%emt 0:09:36]} Nxd4 {[%emt 0:05:10]} 9. Bxe7 {[%emt 0:00:34]} Kxe7 {[%emt 0:00:06]} 10. Rd1 {[%emt 0:03:52]} Ne6 {[%emt 0:01:32]} 11. e3 {[%emt 0:00:14]} a5 {[%emt 0:04:47]} 12. Ne2 {[%emt 0:02:17]} Nc5 {[%emt 0:03:13]} 13. Nf4 {[%emt 0:09:25]} c6 {[%emt 0:11:18]} 14. Nd3 {[%emt 0:01:46]} b6 {[%emt 0:00:19]} 15. Nxc5 {[%emt 0:01:14]} bxc5 {[%emt 0:00:05]} 16. Kd2 {[%emt 0:00:50]} d5 {[%emt 0:05:14]} 17. Kc3 {[%emt 0:03:10]} Be6 {[%emt 0:00:16]} 18. Be2 {[%emt 0:01:43]} Rab8 {[%emt 0:01:15]} 19. Rd2 {[%emt 0:03:14]} Rb4 {[%emt 0:00:52]} 20. h4 {[%emt 0:08:24]} Rhb8 {[%emt 0:01:28]} 21. Rhd1 {[%emt 0:03:24]} a4 {[%emt 0:02:11]} 22. f4 {[%emt 0:03:11]} f5 {[%emt 0:12:11]} 23. cxd5 {[%emt 0:03:09]} cxd5 {[%emt 0:05:25]} 24. Bf3 {[%emt 0:00:44] [#]} d4+ $1 {[%emt 0:06:17]} 25. exd4 {[%emt 0:00:08]} Rc4+ {[%emt 0:00:05]} (25... Bxa2 26. dxc5 Rc4+ 27. Kd3 Rxc5 28. Ke3 $19) 26. Kd3 {[%emt 0:00:04]} Rxd4+ {[%emt 0:00:03]} 27. Ke3 {[%emt 0:01:37]} Rxd2 {[%emt 0:04:55]} (27... Bxa2 28. Rxd4 cxd4+ 29. Rxd4) 28. Rxd2 {[%emt 0:00:05]} Bxa2 {[%emt 0:00:06]} 29. Bc6 {[%emt 0:01:01]} Rb3+ {[%emt 0:02:10]} 30. Ke2 {[%emt 0:03:05]} Rb4 {[%emt 0:10:54]} 31. Rd7+ {[%emt 0:00:26]} (31. Kf3 $17) 31... Ke6 $19 {[%emt 0:09:30]} 32. Rxg7 {[%emt 0:00:21]} (32. Ke3 $142) 32... Bd5 {[%emt 0:00:51]} (32... Rxb2+ 33. Ke3 $17) (32... Kd6 $19 33. Bf3 Rxb2+ (33... Rxf4 34. Rxh7 Rb4 35. Ke1 $15) 34. Ke3 c4 35. Rxh7 Bb3 36. Rh6+ Kc5) 33. Bxd5+ $17 {[%emt 0:03:48]} Kxd5 {[%emt 0:00:02]} 34. Rxh7 $2 {[%emt 0:00:06]} (34. Kd3 $17 {was the crucial defense.}) 34... Ke4 $19 {[%emt 0:02:56]} (34... Rxb2+ $2 35. Kf3 $19) (34... Rxf4 35. h5 $11) 35. Kd2 {[%emt 0:01:16]} (35. Re7+ $142 Kxf4 36. Ra7) 35... Rxb2+ $19 {[%emt 0:02:24]} 36. Kc3 {[%emt 0:00:01]} Rxg2 {[%emt 0:00:08]} 37. Ra7 {[%emt 0:00:42]} Rg3+ {[%emt 0:02:10]} (37... Kxf4 38. Rxa4+ Kg3 39. Ra8 Kxh4 40. Kd3) 38. Kd2 {[%emt 0:04:17]} Ra3 {[%emt 0:01:32]} (38... Kxf4 39. Rxa4+ Ke5 40. Rc4 $11) 39. h5 {[%emt 0:00:33]} Kxf4 {[%emt 0:03:57]} 40. h6 {[%emt 0:00:00]} Kg5 {[%emt 0:00:00]} 41. h7 {[%emt 0:01:49]} Rh3 {[%emt 0:01:25]} 42. Ke2 {[%emt 0:01:47]} a3 {[%emt 0:02:08]} 43. Rg7+ {[%emt 0:08:11]} Kf4 {[%emt 0:05:28]} 44. Ra7 {[%emt 0:00:42] [#]} a2 {[%emt 0:03:38]} (44... Rh2+ $142 $1 45. Kd3 a2) 45. Rxa2 {[%emt 0:00:04]} Rxh7 {[%emt 0:00:04]} 46. Ra4+ {[%emt 0:00:03]} Ke5 {[%emt 0:00:22]} 47. Rc4 {[%emt 0:00:03]} Kd5 {[%emt 0:07:40]} 48. Rf4 {[%emt 0:00:14]} Re7+ {[%emt 0:00:04]} 49. Kd3 {[%emt 0:00:38]} Re5 {[%emt 0:00:09]} 50. Rf1 {[%emt 0:02:33]} Ke6 {[%emt 0:01:54]} (50... c4+ $142 51. Kc2 Ke4 52. Re1+ Kf4 53. Rf1+ Kg4 54. Rg1+ Kf3 55. Rg8 f4 56. Kd2 Re2+ 57. Kc3 Re4 58. Kd2 Kf2 59. Rh8 f3 60. Rh6 Rd4+ 61. Kc3 Ke3 62. Rh1 Re4 63. Re1+ Kf4 64. Rh1 Kg3 65. Rg1+ Kh2 66. Rc1 f2 67. Rd1 Kg3 68. Kb4 Re1 69. Rd8 f1=Q (69... f1=B $2 70. Rf8 $19) 70. Kc5 Qf2+ 71. Kc6 Re6+ 72. Kd5 Qf5+ (72... Qd2+ {gets mated.} 73. Kxe6 Qxd8 74. Ke5 c3 75. Ke4 c2 76. Ke5 c1=Q 77. Kf5 Qcg5+ 78. Ke6 Qgf6#) 73. Kxc4 Rc6+ 74. Kb4 Qc5+ (74... Qb1+ 75. Ka5 Qa2+ 76. Kb4 Rc4+ 77. Kb5 Qb3+ 78. Ka6 Ra4#) 75. Ka4 Qa7+ (75... Ra6+ $2 {leads to mate.} 76. Kb3 Rb6+ 77. Ka4 Qb4#) 76. Kb4 Qb7+ 77. Ka5 Ra6#) 51. Rf2 {[%emt 0:03:58]} Re4 {[%emt 0:01:12]} 52. Rc2 {[%emt 0:00:36]} Kd5 {[%emt 0:01:26]} 53. Rf2 {[%emt 0:00:05]} f4 {[%emt 0:00:51]} 54. Rh2 {[%emt 0:00:15]} Re3+ {[%emt 0:01:52]} 55. Kd2 {[%emt 0:00:08]} c4 {[%emt 0:01:45]} 56. Rh8 {[%emt 0:00:35]} c3+ {[%emt 0:00:18]} 57. Kc2 {[%emt 0:00:57]} Ke4 {[%emt 0:00:17]} 58. Kd1 {[%emt 0:00:24]} Kf3 {[%emt 0:00:52]} 59. Rf8 {[%emt 0:00:56]} Kg3 {[%emt 0:00:19]} 60. Rg8+ {[%emt 0:01:22]} Kf2 {[%emt 0:00:28]} 61. Rf8 {[%emt 0:00:07]} f3 {[%emt 0:00:19]} 62. Rg8 {[%emt 0:00:07]} Kf1 {[%emt 0:04:01]} 63. Rg3 {[%emt 0:00:57]} Re1+ {[%emt 0:00:33]} 64. Kc2 {[%emt 0:00:02]} f2 {[%emt 0:00:04]} 65. Rg8 {[%emt 0:02:57]} Re3 {[%emt 0:01:26]} 66. Kd1 {[%emt 0:00:16]} Rd3+ {[%emt 0:00:28]} 67. Kc2 {[%emt 0:00:05]} Ke2 {[%emt 0:00:26]} 68. Rf8 {[%emt 0:00:21]} Rf3 {[%emt 0:00:47]} ({Weaker is} 68... f1=R 69. Rxf1 Kxf1 70. Kxd3 $11) 69. Re8+ {[%emt 0:00:04]} Re3 {[%emt 0:00:11]} 0-1

[Event "Austrian Bundesliga 2023-24"]
[Site "Austria"]
[Date "2024.03.24"]
[Round "11.5"]
[White "Bures, Jaroslav"]
[Black "Genser, Harald"]
[Result "1-0"]
[ECO "C07"]
[WhiteElo "2407"]
[BlackElo "2263"]
[Annotator "TA"]
[PlyCount "133"]
[EventDate "2023.10.21"]
[EventType "team-tourn"]
[EventCountry "AUT"]
[SourceTitle "playchess.com"]
[Source "ChessBase"]
[SourceQuality "1"]
[TimeControl "40/5400+30:1800+30"]

{[%evp 61,133,-39,0,-92,30,0,0,-33,50,43,51,53,59,3,102,95,119,119,147,122,137,122,130,125,635,174,121,123,123,114,115,107,113,121,110,111,118,118,199,118,184,118,158,143,242,118,264,273,262,205,181,158,245,216,262,211,178,58,205,180,157,143,199,197,437,432,590,313,733,389,789,760,806,777]} 1. e4 {[%emt 0:00:03]} e6 {[%emt 0:00:16]} 2. d4 {[%emt 0:00:06]} d5 {[%emt 0:00:32]} 3. Nd2 {[%emt 0:00:04]} c5 {[%emt 0:01:26]} 4. Ngf3 {[%emt 0:00:05]} cxd4 {[%emt 0:03:16]} 5. Nxd4 {[%emt 0:01:42]} Nc6 {[%emt 0:00:21]} 6. Bb5 {[%emt 0:00:02]} Bd7 {[%emt 0:01:07]} 7. Nxc6 {[%emt 0:00:03]} bxc6 {[%emt 0:04:44]} 8. Bd3 {[%emt 0:00:07]} Qc7 {[%emt 0:03:38]} 9. Qe2 {[%emt 0:00:11] C07: Französische Verteidigung (Tarrasch-Variante).} Bd6 {[%emt 0:04:11]} 10. Nf3 {[%emt 0:00:11]} Ne7 {[%emt 0:06:46]} 11. e5 {[%emt 0:01:34]} Bc5 {[%emt 0:04:05]} 12. h4 {[%emt 0:10:47]} Nf5 $146 {[%emt 0:05:07]} ({Predecessor:} 12... Bb6 13. h5 h6 14. Rh3 c5 15. c3 O-O-O 16. Kf1 f5 17. Ba6+ Kb8 18. b4 cxb4 19. cxb4 {1-0 Hari,M (2425)-Vrashank,C (1985) Asia-ch U20 Jamshedpur 2023 (9)}) 13. h5 {[%emt 0:05:03]} Nd4 {[%emt 0:04:02]} 14. Nxd4 {[%emt 0:00:16]} Bxd4 {[%emt 0:00:04]} 15. f4 {[%emt 0:00:03]} f5 {[%emt 0:09:54]} 16. g4 {[%emt 0:04:39]} O-O {[%emt 0:16:31]} 17. c3 {[%emt 0:00:27]} Bc5 {[%emt 0:01:51]} 18. gxf5 {[%emt 0:07:43]} exf5 {[%emt 0:00:15]} 19. Be3 {[%emt 0:00:04]} Bxe3 {[%emt 0:02:28]} 20. Qxe3 {[%emt 0:00:01]} Qb6 {[%emt 0:00:19]} 21. Qd2 {[%emt 0:03:26]} Be6 {[%emt 0:02:03]} 22. O-O-O {[%emt 0:02:09]} a5 {[%emt 0:00:35]} 23. Rdg1 {[%emt 0:03:46]} Ra7 {[%emt 0:05:42]} 24. Rg5 {[%emt 0:08:49]} Re7 {[%emt 0:06:38]} 25. Rhg1 {[%emt 0:01:28]} Kh8 {[%emt 0:00:59]} 26. R1g3 {[%emt 0:00:18]} Qa7 {[%emt 0:01:08]} 27. Qg2 {[%emt 0:03:59]} Qc7 {[%emt 0:01:53]} 28. Qc2 {[%emt 0:03:09]} Qd7 {[%emt 0:03:02]} 29. a3 {[%emt 0:06:52]} c5 {[%emt 0:00:57]} 30. Qd2 {[%emt 0:02:22]} Qc7 {[%emt 0:02:16]} 31. Bc2 {[%emt 0:03:42]} Qa7 {[%emt 0:01:05]} 32. Kb1 {[%emt 0:04:22]} (32. Bb3 $11 Rd7 33. Rg2) 32... Qc7 {[%emt 0:00:13]} ({Vorzuziehen ist} 32... Rb7 $1 $17) 33. Qg2 {[%emt 0:02:14]} Qa7 {[%emt 0:00:33]} 34. Qg1 {[%emt 0:03:54]} Qc7 {[%emt 0:00:17]} (34... Rb7 $15) 35. Rg2 $14 {[%emt 0:02:37]} Rd7 {[%emt 0:01:12]} 36. Rg6 {[%emt 0:05:14]} Re7 $1 {[%emt 0:00:15]} (36... hxg6 $2 37. hxg6 Kg8 38. Qh1 $18) 37. Rd2 {[%emt 0:05:11]} (37. R6g3 $14) 37... Qc8 {[%emt 0:02:47]} (37... hxg6 $2 38. hxg6 Kg8 39. Qh1 $18) (37... Rb8 $11 38. Rg3 Qb7) 38. Bb3 $16 {[%emt 0:06:36]} c4 {[%emt 0:02:08]} (38... hxg6 39. hxg6 Kg8 40. Qh1) 39. Ba4 $1 {[%emt 0:01:08]} Qc7 {[%emt 0:00:39]} (39... hxg6 $2 40. hxg6 Kg8 41. Qh1 $18) 40. Rh2 {[%emt 0:00:00]} h6 {[%emt 0:00:00]} (40... hxg6 41. hxg6+ Kg8 42. Qh1 Rd8 43. Rh8#) 41. Rhg2 {[%emt 0:06:06]} Rd8 {[%emt 0:06:44]} 42. Rd2 {[%emt 0:01:47]} Kh7 $2 {[%emt 0:03:32][%mdl 8192]} (42... Rb8 $16 43. Qd4 Qc8) 43. Ka1 $2 {[%emt 0:01:14]} (43. Rxh6+ gxh6 44. Qg6+ Kh8 45. Qxh6+ Kg8 46. Rg2+ Rg7 47. Qxe6+ Qf7 48. Qxf7+ (48. Rxg7+ Kxg7 49. h6+ Kg8 $18) 48... Kxf7 49. e6+ Kxe6 50. Rxg7) 43... Kh8 $18 {[%emt 0:00:14]} 44. Bc2 {[%emt 0:00:22]} Rf8 {[%emt 0:01:20]} 45. Rd4 {[%emt 0:04:02]} Qc8 {[%emt 0:02:10]} 46. Bd1 {[%emt 0:00:24]} Qc5 {[%emt 0:03:16]} 47. Bf3 {[%emt 0:00:13]} Rb8 {[%emt 0:02:16]} 48. Rd2 {[%emt 0:01:17]} Qxg1+ {[%emt 0:03:46]} 49. Rxg1 {[%emt 0:00:02]} Rb5 {[%emt 0:01:06]} (49... Rd8 $16 50. Rg6 Ree8) 50. Rg6 {[%emt 0:02:56]} (50. a4 $1 $18 {[%cal Ra4b5]} Rc5 51. Rg6) 50... Rc5 {[%emt 0:04:18] [#]} (50... a4 $16 51. Kb1 (51. Bd1 Rb8 $18) 51... Kg8) 51. Kb1 {[%emt 0:00:17]} (51. a4 $1 $18) 51... Kh7 {[%emt 0:01:36]} 52. Kc1 {[%emt 0:00:14]} Kh8 {[%emt 0:00:55]} (52... a4 $16 {war nötig.} 53. Rdg2 Rc8) 53. Rd4 {[%emt 0:04:35]} (53. a4 $18 {und Weiss behält klar die Oberhand.}) 53... Kh7 {[%emt 0:00:30]} (53... a4 $16 54. Bd1 Ra5) 54. a4 $18 {[%emt 0:00:44]} Kh8 {[%emt 0:00:42]} 55. Rxe6 {[%emt 0:01:51]} Rxe6 {[%emt 0:00:06]} 56. Bxd5 {[%emt 0:00:04]} (56. Rxd5 Rxd5 57. Bxd5 Re8 $16) 56... Re7 {[%emt 0:03:18]} (56... Rb6 $16 {war angesagt.} 57. Bf7 (57. Rxc4 $2 Rxd5 58. b4 g5 $19) (57. Bxc4 g5 $18) 57... Rc8) 57. Bxc4 $18 {[%emt 0:00:05]} (57. Rxc4 $2 Rxd5 58. Kc2 g5 59. hxg6 h5 $19 (59... Kg7 $2 60. Rc6 $19)) 57... Kh7 {[%emt 0:00:11]} 58. Bd3 {[%emt 0:00:56]} g6 {[%emt 0:01:33]} 59. Rd6 {[%emt 0:05:49]} (59. hxg6+ $18 Kxg6 60. Kd2 (60. Rd6+ Kg7 $16)) 59... gxh5 {[%emt 0:01:00]} ({Besser ist} 59... g5 $1 $14) 60. Bxf5+ $18 {[%emt 0:00:03]} Kg7 {[%emt 0:00:49]} 61. Rg6+ {[%emt 0:00:18]} Kf8 {[%emt 0:00:10] [#]} (61... Kf7 $16 {kämpft weiter.}) 62. Be6 $1 $18 {[%emt 0:03:42]} ({Lieber nicht} 62. Rxh6 Rc4 $14) 62... Rh7 $2 {[%emt 0:01:33]} (62... Rg7 63. Rxh6 Ke7) 63. Kd2 $18 {[%emt 0:01:46]} h4 {[%emt 0:00:41]} 64. Ke3 {[%emt 0:00:14]} Rc6 $2 {[%emt 0:00:44]} (64... Rh8 65. Rg4 Ke8) 65. Rg8+ $18 {[%emt 0:01:10]} Ke7 {[%emt 0:00:07]} 66. Bd5 {[%emt 0:00:01]} Rb6 {[%emt 0:01:39]} 67. f5 {[%emt 0:00:13]} 1-0

[Event "Austrian Bundesliga 2023-24"]
[Site "Austria"]
[Date "2024.03.24"]
[Round "11.6"]
[White "Hartl, Daniel"]
[Black "Mikes, Jan"]
[Result "1/2-1/2"]
[ECO "E62"]
[WhiteElo "2248"]
[BlackElo "2358"]
[Annotator "RC"]
[PlyCount "125"]
[EventDate "2023.10.21"]
[EventType "team-tourn"]
[EventCountry "AUT"]
[SourceTitle "playchess.com"]
[Source "ChessBase"]
[SourceQuality "1"]
[TimeControl "40/5400+30:1800+30"]

1. d4 {[%emt 0:00:03]} Nf6 {[%emt 0:00:21]} 2. c4 {[%emt 0:00:06]} g6 {[%emt 0:00:47]} 3. g3 {[%emt 0:00:07]} Bg7 {[%emt 0:00:06]} 4. Bg2 {[%emt 0:00:04]} O-O {[%emt 0:00:12]} 5. Nf3 {[%emt 0:00:06]} d6 {[%emt 0:00:13]} 6. Nc3 {[%emt 0:00:07]} c6 {[%emt 0:01:11]} 7. O-O {[%emt 0:00:06]} Bf5 {[%emt 0:00:17]} 8. h3 {[%emt 0:06:46]} Ne4 {[%emt 0:00:39]} 9. Nxe4 {[%emt 0:03:09]} Bxe4 {[%emt 0:00:06]} 10. Be3 {[%emt 0:00:31]} Nd7 {[%emt 0:01:22]} 11. Qd2 {[%emt 0:02:53]} Qb6 {[%emt 0:09:25]} 12. Rfd1 {[%emt 0:03:53]} d5 {[%emt 0:02:30]} 13. Ne5 {[%emt 0:13:12]} Nf6 {[%emt 0:18:32]} 14. f3 {[%emt 0:04:10]} Bf5 {[%emt 0:00:05]} 15. c5 {[%emt 0:00:15]} Qd8 {[%emt 0:02:35]} 16. g4 {[%emt 0:06:19]} Bc8 {[%emt 0:00:55]} 17. Bh6 {[%emt 0:09:46]} Ne8 {[%emt 0:02:54]} 18. b4 {[%emt 0:08:07]} f6 {[%emt 0:06:34]} 19. Nd3 {[%emt 0:00:26]} g5 {[%emt 0:01:12]} 20. Bxg7 {[%emt 0:00:39]} Nxg7 {[%emt 0:00:05]} 21. f4 {[%emt 0:00:15]} h6 {[%emt 0:05:30]} 22. e3 {[%emt 0:04:20]} Qc7 {[%emt 0:03:20]} 23. Rf1 {[%emt 0:00:58]} Be6 {[%emt 0:00:27]} 24. a4 {[%emt 0:01:27]} Bf7 {[%emt 0:00:49]} 25. b5 {[%emt 0:05:42]} Bg6 {[%emt 0:00:26]} 26. Ra3 {[%emt 0:04:58]} Qd7 {[%emt 0:05:58]} 27. Rb3 {[%emt 0:01:57]} Bxd3 {[%emt 0:08:58]} 28. Qxd3 {[%emt 0:00:04]} f5 {[%emt 0:00:15]} 29. bxc6 {[%emt 0:06:05]} bxc6 {[%emt 0:00:05]} 30. Qe2 {[%emt 0:00:36]} Qe6 {[%emt 0:04:20]} 31. fxg5 {[%emt 0:02:23]} hxg5 {[%emt 0:00:05]} 32. gxf5 {[%emt 0:00:13]} Rxf5 {[%emt 0:00:53]} 33. Qg4 {[%emt 0:00:31]} Rxf1+ {[%emt 0:05:53]} 34. Bxf1 {[%emt 0:00:06]} Qf6 {[%emt 0:00:05]} 35. Bd3 {[%emt 0:10:18]} Rf8 {[%emt 0:01:40]} 36. Rb2 {[%emt 0:00:05]} e5 {[%emt 0:01:31]} 37. Rg2 {[%emt 0:03:20]} exd4 {[%emt 0:00:53]} 38. exd4 {[%emt 0:00:24]} Ne6 39. h4 {[%emt 0:00:19]} Qxd4+ {[%emt 0:03:00]} 40. Qxd4 {[%emt 0:00:00]} Nxd4 {[%emt 0:00:00]} 41. Rxg5+ {[%emt 0:01:12]} Kf7 {[%emt 0:00:58]} 42. Kf2 {[%emt 0:04:06]} Rh8 {[%emt 0:05:09]} 43. h5 {[%emt 0:03:34]} Rh6 {[%emt 0:13:23]} 44. Ke3 {[%emt 0:06:34]} Kf6 {[%emt 0:13:38]} 45. Rg8 {[%emt 0:02:49]} Ne6 {[%emt 0:01:25]} 46. Bg6 {[%emt 0:00:24]} Nxc5 {[%emt 0:02:44]} 47. Ra8 {[%emt 0:02:41]} Nxa4 {[%emt 0:02:31]} 48. Kd4 {[%emt 0:00:16]} c5+ {[%emt 0:01:01]} 49. Kd3 {[%emt 0:00:20]} Ke5 {[%emt 0:01:45]} 50. Rxa7 {[%emt 0:00:15]} c4+ {[%emt 0:00:04]} 51. Kc2 {[%emt 0:00:38]} Nc5 {[%emt 0:00:28]} 52. Re7+ {[%emt 0:03:41]} Ne6 {[%emt 0:02:09]} 53. Kc3 {[%emt 0:00:21]} Kd6 {[%emt 0:00:29]} 54. Rh7 {[%emt 0:02:08]} Rxh7 {[%emt 0:00:05]} 55. Bxh7 {[%emt 0:00:04]} Kc5 {[%emt 0:00:23]} 56. Bg8 {[%emt 0:01:25]} d4+ {[%emt 0:00:08]} 57. Kd2 {[%emt 0:00:37]} Nf4 {[%emt 0:05:38]} 58. h6 {[%emt 0:01:06]} c3+ {[%emt 0:00:03]} 59. Kc2 {[%emt 0:00:33]} Kb4 {[%emt 0:00:08]} 60. Bh7 {[%emt 0:00:40]} Nd5 {[%emt 0:00:28]} 61. Bg6 {[%emt 0:01:51]} Nf6 {[%emt 0:00:12]} 62. h7 {[%emt 0:01:18]} Nxh7 {[%emt 0:00:04]} 63. Bxh7 1/2-1/2

[Event "Austrian Bundesliga 2023-24"]
[Site "Austria"]
[Date "2024.03.24"]
[Round "11.7"]
[White "Kadric, Denis"]
[Black "Donchenko, Alexander"]
[Result "1/2-1/2"]
[ECO "B22"]
[WhiteElo "2560"]
[BlackElo "2631"]
[Annotator "TA"]
[PlyCount "45"]
[EventDate "2023.10.21"]
[EventType "team-tourn"]
[EventCountry "AUT"]
[SourceTitle "playchess.com"]
[Source "ChessBase"]
[SourceQuality "1"]
[TimeControl "40/5400+30:1800+30"]

{[%evp 9,45,9,13,10,16,-22,21,-30,13,8,0,29,10,4,11,31,18,29,20,27,28,14,42,7,9,0,0,0,0,0,0,0,0,0,0,0,0,0]} 1. e4 {[%emt 0:00:02][%cal Be2e4,Be4e5][%mdl 32]} c5 {[%emt 0:00:06]} 2. c3 {[%emt 0:00:31]} Nf6 {[%emt 0:04:37]} 3. e5 {[%emt 0:00:07]} Nd5 {[%emt 0:00:04]} 4. Bc4 {[%emt 0:01:34]} Nb6 {[%emt 0:00:32]} 5. Bb3 {[%emt 0:00:03]} d6 {[%emt 0:01:28]} 6. exd6 {[%emt 0:00:08]} Qxd6 {[%emt 0:01:49]} 7. Na3 {[%emt 0:00:16]} Nc6 {[%emt 0:02:13]} 8. Ne2 {[%emt 0:03:01]} ({Better is} 8. d4) 8... g6 {[%emt 0:13:29]} 9. d4 {[%emt 0:06:05]} cxd4 {[%emt 0:01:10]} 10. Nb5 {[%emt 0:00:05]} Qd7 {[%emt 0:02:02]} 11. cxd4 {[%emt 0:20:02] Threatens to win with Bf4.} Bg7 {[%emt 0:02:07]} 12. Bf4 {[%emt 0:06:20] [#] Hoping for Nc7+.} O-O {[%emt 0:02:58]} 13. O-O {[%emt 0:02:19]} e5 {[%emt 0:15:48]} 14. dxe5 {[%emt 0:01:29]} Nxe5 {[%emt 0:00:06]} 15. Nec3 {[%emt 0:05:04]} Nbc4 {[%emt 0:07:13]} 16. Bxc4 {[%emt 0:11:24]} (16. Re1 $5) 16... Nxc4 {[%emt 0:00:43] The position is equal.} 17. Nc7 {[%emt 0:05:53]} Qxd1 $1 {[%emt 0:05:14]} 18. Nxd1 {[%emt 0:01:19]} Rb8 {[%emt 0:00:39][%cal Oc8g4]} 19. Na6 {[%emt 0:00:02]} Ra8 {[%emt 0:00:25]} ({But not} 19... bxa6 $6 20. Bxb8 Re8 21. Ne3 $16 (21. Bxa7 Nd2 $11)) 20. Nc7 {[%emt 0:00:03]} Rb8 {[%emt 0:00:53][%cal Oc8f5]} 21. Na6 {[%emt 0:00:03]} Ra8 {[%emt 0:00:06]} (21... bxa6 22. Bxb8 Re8 23. Ne3 (23. Bxa7 Nd2 $11) 23... Nxb2 24. Bxa7) 22. Nc7 {[%emt 0:00:04]} Rb8 {[%emt 0:00:04][%cal Oc8g4]} 23. Na6 {Not much happened in this game.   Weighted Error Value: White=0.11 (very precise) /Black=0.10 (very precise) .  Mistake:       	White=1     	---        Inaccurate:     	White=2     	Black=3      OK:         	White=8     	Black=8      Best:        	---       	Black=1      Strong:       	---       	Black=1} 1/2-1/2